fUST/lending_fUST_20240423
["ID","MTS","AMOUNT","RATE_DAILY","PERIOD"]
[323202955,1713804648345,-1000.0,0.0003,120]
[323202956,1713804648354,-471.0,0.0003,15]
[323202957,1713804648364,-10000.0,0.0003,20]
[323202958,1713804648373,-5647.5656994,0.0003,7]
[323202959,1713804648382,-166.666666,0.0003,2]
[323202960,1713804648393,-259.0,0.0003,2]
[323202961,1713804648401,-200.0,0.00030034,120]
[323202962,1713804648411,-200.0,0.0003005,120]
[323202963,1713804648420,-160.0,0.00030067,18]
[323202964,1713804648429,-508.07,0.00030136,2]
[323202965,1713804648439,-176.361824,0.00030137,2]
[323202966,1713804648448,-176.361824,0.00030137,21]
[323202967,1713804648458,-176.361824,0.00030137,41]
[323202968,1713804648466,-176.361824,0.00030137,61]
[323202969,1713804648475,-176.361824,0.00030137,80]
[323202970,1713804648486,-176.361824,0.00030137,100]
[323202971,1713804648495,-176.361824,0.00030137,120]
[323202972,1713804648505,-200.0,0.00030142,120]
[323202973,1713804648514,-508.07,0.00030191,2]
[323202974,1713804648523,-200.0,0.00030215,120]
[323202975,1713804648532,-508.07,0.00030246,2]
[323202976,1713804648541,-160.0,0.00030262,19]
[323202977,1713804648551,-1613.0,0.00030282,2]
[323202978,1713804648560,-508.07,0.00030301,2]
[323202979,1713804648569,-508.07,0.00030356,2]
[323202980,1713804648581,-200.0,0.00030369,120]
[323202981,1713804648590,-508.07,0.0003041,2]
[323202982,1713804648599,-160.0,0.00030458,20]
[323202983,1713804648608,-200.0,0.00030465,120]
[323202984,1713804648617,-508.07,0.00030465,2]
[323202985,1713804648626,-508.07,0.0003052,2]
[323202986,1713804648635,-508.07,0.00030575,2]
[323202987,1713804648644,-166.666666,0.00030603,2]
[323202988,1713804648653,-508.07,0.0003063,2]
[323202989,1713804648662,-160.0,0.00030654,21]
[323202990,1713804648671,-508.07,0.00030684,2]
[323202991,1713804648681,-508.07,0.00030739,2]
[323202992,1713804648691,-508.07,0.00030794,2]
[323202993,1713804648701,-1000.0,0.000308,7]
[323202994,1713804648710,-508.07,0.00030849,2]
[323202995,1713804648719,-160.0,0.00030849,22]
[323202996,1713804648729,-508.07,0.00030904,2]
[323202997,1713804648738,-153.0,0.00030956,2]
[323202998,1713804648747,-153.0,0.00030956,2]
[323202999,1713804648757,-154.9993477,0.00030956,2]
[323203000,1713804648766,-153.0,0.00030956,2]
[323203001,1713804648776,-268.3049176,0.00030956,2]
[323203002,1713804648785,-406.7261526,0.00030956,2]
[323203003,1713804648795,-153.0,0.00030956,2]
[323203004,1713804648805,-153.0,0.00030956,2]
[323203005,1713804648815,-153.0,0.00030956,2]
[323203006,1713804648826,-153.0,0.00030956,2]
[323203007,1713804648836,-153.0,0.00030956,2]
[323203008,1713804648846,-153.0,0.00030956,2]
[323203009,1713804648856,-153.0,0.00030956,2]
[323203010,1713804648866,-153.0,0.00030956,2]
[323203011,1713804648876,-153.0,0.00030956,2]
[323203012,1713804648887,-153.0,0.00030956,2]
[323203013,1713804648897,-153.0,0.00030956,2]
[323203014,1713804648907,-153.0,0.00030956,2]
[323203015,1713804648916,-153.0,0.00030956,2]
[323203016,1713804648926,-153.0,0.00030956,2]
[323203017,1713804648936,-153.0,0.00030956,2]
[323203018,1713804648944,-153.0,0.00030956,2]
[323203019,1713804648953,-153.0,0.00030956,2]
[323203020,1713804648962,-153.0,0.00030956,2]
[323203021,1713804648973,-153.0,0.00030956,2]
[323203022,1713804648982,-153.0,0.00030956,2]
[323203023,1713804648991,-153.0,0.00030956,2]
[323203024,1713804649000,-153.0,0.00030956,2]
[323203025,1713804649010,-153.0,0.00030956,2]
[323203026,1713804649019,-153.0,0.00030956,2]
[323203027,1713804649028,-153.0,0.00030956,2]
[323203028,1713804649036,-153.0,0.00030956,2]
[323203029,1713804649045,-153.0,0.00030956,2]
[323203030,1713804649054,-153.0,0.00030956,2]
[323203031,1713804649062,-153.0,0.00030956,2]
[323203032,1713804649071,-153.0,0.00030956,2]
[323203033,1713804649081,-508.07,0.00030958,2]
[323203034,1713804649090,-2019.66664158,0.00031,2]
[323203035,1713804649100,-1964.27711413,0.00031,2]
[323203036,1713804649109,-508.07,0.00031013,2]
[323203037,1713804649118,-160.0,0.00031045,23]
[323203038,1713804649127,-508.07,0.00031068,2]
[323203039,1713804649136,-200.0,0.00031102,120]
[323203040,1713804649145,-508.07,0.00031123,2]
[323203041,1713804649154,-508.07,0.00031178,2]
[323203042,1713804649162,-508.07,0.00031232,2]
[323203043,1713804649172,-160.0,0.00031241,24]
[323203044,1713804649181,-508.07,0.00031287,2]
[323203045,1713804649190,-508.07,0.00031342,2]
[323203046,1713804649199,-508.12933703,0.00031397,2]
[323203047,1713804649208,-160.0,0.00031436,25]
[323203048,1713804649217,-160.0,0.00031632,26]
[323203049,1713804649226,-1009.71,0.000318,8]
[323203050,1713804649234,-160.0,0.00031827,27]
[323203051,1713804649243,-191.32113027,0.00032,4]
[323203052,1713804649252,-1210.66841003,0.00032,3]
[323203053,1713804649262,-1210.78934384,0.00032,3]
[323203054,1713804649271,-160.0,0.00032023,28]
[323203055,1713804649279,-160.0,0.00032219,29]
[323203056,1713804649288,-225.55095226,0.00032219,5]
[323203057,1713804649297,-464.82452034,0.00032876,2]
[323203058,1713804649306,-453.81774337,0.00032876,2]
[323203059,1713804649314,-500.0,0.00032876,2]
[323203060,1713804649323,-500.0,0.00032876,2]
[323203061,1713804649332,-500.0,0.00032876,2]
[323203062,1713804649341,-500.0,0.00032876,2]
[323203063,1713804649350,-500.0,0.00032876,2]
[323203064,1713804649359,-500.0,0.00032876,2]
[323203065,1713804649368,-534.66708314,0.00032876,2]
[323203066,1713804649377,-1180.16,0.00033,120]
[323203067,1713804649385,-200.0,0.00033,30]
[323203068,1713804649394,-605.68790752,0.00033,4]
[323203069,1713804649403,-259.0,0.00033,2]
[323203070,1713804649411,-259.0,0.00033,2]
[323203071,1713804649420,-750.0,0.00033165,2]
[323203072,1713804649429,-2258.0,0.00033311,2]
[323203073,1713804649438,-5003.02160976,0.0003379,2]
[323203074,1713804649447,-300.0,0.000338,30]
[323203075,1713804649456,-1210.66841003,0.0003392,3]
[323203076,1713804649465,-1211.2732242,0.0003392,3]
[323203077,1713804649474,-465.76981599,0.00034,4]
[323203078,1713804649483,-212.13553513,0.00034,30]
[323203079,1713804649492,-2000.0,0.00034,5]
[323203080,1713804649501,-1563.01828812,0.00034,7]
[323203081,1713804649509,-253423.72192292,0.00034,60]
[323203082,1713804649518,-151.942664,0.00034,2]
[323203083,1713804649527,-151.942664,0.00034,2]
[323203084,1713804649535,-249.915661,0.00034,2]
[323203085,1713804649544,-153.0,0.00034076,2]
[323203086,1713804649553,-153.0,0.00034076,2]
[323203087,1713804649562,-153.0,0.00034076,2]
[323203088,1713804649570,-153.0,0.00034076,2]
[323203089,1713804649580,-153.0,0.00034076,2]
[323203090,1713804649588,-10365.03110214,0.00034555,10]
[323203091,1713804649598,-1270.40872487,0.00034728,12]
[323203092,1713804649607,-1000.0,0.000348,3]
[323203093,1713804649616,-1000.0,0.000348,3]
[323203094,1713804649625,-1327.18108402,0.000349,2]
[323203095,1713804649633,-1809.43657788,0.000349,2]
[323203096,1713804649642,-158.78237666,0.00034998,4]
[323203097,1713804649651,-201.56668009,0.00034998,4]
[323203098,1713804649660,-6878.54444506,0.00035,4]
[323203099,1713804649670,-214.32550929,0.00035,4]
[323203100,1713804649679,-853.46514771,0.00035,2]
[323203101,1713804649689,-10277.73941367,0.00035,2]
[323203102,1713804649699,-1510.76451391,0.00035,30]
[323203103,1713804649709,-186.27774533,0.00035,30]
[323203104,1713804649718,-9562.60140233,0.00035,4]
[323203105,1713804649727,-12746.14449215,0.00035,4]
[323203106,1713804649736,-10068.0,0.00035,30]
[323203107,1713804649746,-6413.1587427,0.00035,7]
[323203108,1713804649755,-568.51861866,0.00035,2]
[323203109,1713804649764,-172.38567453,0.00035,30]
[323203110,1713804649774,-502.60562193,0.00035,120]
[323203111,1713804649783,-1353.35182827,0.00035,4]
[323203112,1713804649792,-1353.35182827,0.00035,4]
[323203113,1713804649801,-10000.0,0.00035,30]
[323203114,1713804649811,-740.59231363,0.000351,2]
[323203115,1713804649821,-3535.60356224,0.00035455,14]
[323203116,1713804649832,-1876.546054,0.00035616,120]
[323203117,1713804649842,-56406.9,0.00035616,3]
[323203118,1713804649851,-47005.75,0.00035616,3]
[323203119,1713804649861,-218.02405608,0.0003584,7]
[323203120,1713804649870,-154.86062544,0.0003589,2]
[323203121,1713804649880,-1727.21817169,0.00035988,2]
[323203122,1713804649891,-55110.89696378,0.00036,30]
[323203123,1713804649901,-796.24410653,0.00036,14]
[323203124,1713804649910,-259.0,0.00036,2]
[323203125,1713804649919,-259.0,0.00036,2]
[323203126,1713804649929,-259.0,0.00036,2]
[323203127,1713804649939,-256.12487649,0.0003624,2]
[323203128,1713804649949,-3162.0,0.00036642,2]
[323203129,1713804649960,-3509.4786437,0.00037,2]
[323203130,1713804649972,-156.01210324,0.00037,120]
[323203131,1713804649981,-6017.0,0.00037,30]
[323203132,1713804649990,-3000.0,0.000375,32]
[323203133,1713804650000,-3000.0,0.0003751,32]
[323203134,1713804650009,-3000.0,0.0003752,32]
[323203135,1713804650019,-3000.0,0.0003753,32]
[323203136,1713804650029,-3000.0,0.0003754,32]
[323203137,1713804650039,-3000.0,0.0003755,32]
[323203138,1713804650049,-3000.0,0.0003756,32]
[323203139,1713804650061,-3000.0,0.0003757,32]
[323203140,1713804650071,-3000.0,0.0003758,32]
[323203141,1713804650082,-4686.080076,0.0003759,32]
[323203142,1713804650092,-2000.0,0.00037802,2]
[323203143,1713804650102,-801.0,0.00038,2]
[323203144,1713804650111,-1201.0,0.00038,10]
[323203145,1713804650121,-20000.0,0.00038388,90]
[323203146,1713804650130,-750.0,0.00038933,2]
[323203147,1713804650140,-150.81901718,0.0003898,2]
[323203148,1713804650149,-259.0,0.00039,2]
[323203149,1713804650159,-259.0,0.00039,2]
[323203150,1713804650170,-259.0,0.00039,2]
[323203151,1713804650180,-301.63803436,0.00039635,4]
[323203152,1713804650190,-155.25597968,0.0004,2]
[323203153,1713804650199,-955.90458991,0.0004,10]
[323203154,1713804650209,-10000.0,0.0004,7]
[323203155,1713804650219,-200.65885217,0.0004,4]
[323203156,1713804650229,-7471.72189385,0.0004,2]
[323203157,1713804650239,-19890.0,0.0004,2]
[323203158,1713804650249,-4798.648356,0.0004,2]
[323203159,1713804650259,-1088.24098641,0.0004,2]
[323203160,1713804650268,-1068.0,0.0004,30]
[323203161,1713804650278,-209.95718026,0.0004,120]
[323203162,1713804650287,-1005.0,0.0004,30]
[323203163,1713804650297,-191.23693687,0.0004,30]
[323203164,1713804650306,-2880.85130403,0.0004,15]
[323203165,1713804650316,-10000.0,0.0004,40]
[323203166,1713804650326,-55391.84721654,0.0004,120]
[323203167,1713804650336,-1492.7918435,0.0004,7]
[323203168,1713804650346,-4157.08582374,0.0004,30]
[323203169,1713804650356,-151.942664,0.0004,2]
[323203170,1713804650366,-151.942664,0.0004,2]
[323203171,1713804650376,-14515.25,0.00040128,2]
[323203172,1713804650386,-14515.25,0.00040128,2]
[323203173,1713804650395,-14515.25,0.00040128,2]
[323203174,1713804650405,-14515.25,0.00040128,2]
[323203175,1713804650414,-14515.25,0.00040128,2]
[323203176,1713804650423,-14515.25,0.00040128,2]
[323203177,1713804650435,-14515.25,0.00040128,2]
[323203178,1713804650444,-14515.25,0.00040128,2]
[323203179,1713804650454,-14515.25,0.00040128,2]
[323203180,1713804650463,-14515.25,0.00040128,2]
[323203181,1713804650472,-151.942664,0.00040128,2]
[323203182,1713804650482,-151.942664,0.00040128,2]
[323203183,1713804650492,-603.27606872,0.00040301,7]
[323203184,1713804650502,-4427.0,0.00040306,3]
[323203185,1713804650512,-188.83868672,0.00041,2]
[323203186,1713804650521,-2000.0,0.00041095,2]
[323203187,1713804650531,-2000.0,0.00041095,2]
[323203188,1713804650540,-2000.0,0.00041095,2]
[323203189,1713804650550,-2000.0,0.00041095,2]
[323203190,1713804650560,-2000.0,0.00041095,2]
[323203191,1713804650569,-2000.0,0.00041095,2]
[323203192,1713804650580,-1075.40421449,0.00041095,2]
[323203193,1713804650589,-177.8390605,0.00041096,2]
[323203194,1713804650711,-1876.546054,0.00041553,120]
[323203195,1713804650721,-20000.0,0.00041788,90]
[323203196,1713804650730,-444.01471528,0.00042,120]
[323203197,1713804650740,-259.0,0.00042,2]
[323203198,1713804650749,-259.0,0.00042,2]
[323203199,1713804650759,-259.0,0.00042,2]
[323203200,1713804650768,-1727.21817169,0.00042077,2]
[323203201,1713804650778,-519.770808,0.000424,120]
[323203202,1713804650788,-154.86062544,0.00042819,68]
[323203203,1713804650797,-207.83869404,0.00042819,15]
[323203204,1713804650807,-5589.46059448,0.00043,60]
[323203205,1713804650817,-2000.0,0.00043301,2]
[323203206,1713804650826,-20000.0,0.00043788,120]
[323203207,1713804650836,-2502.11555322,0.00043835,120]
[323203208,1713804650845,-14089.29078526,0.00044,10]
[323203209,1713804650855,-1000.0,0.00044,120]
[323203210,1713804650865,-283.0,0.00044,120]
[323203211,1713804650874,-6198.0,0.00044336,3]
[323203212,1713804650886,-48954.0956445,0.000444,2]
[323203220,1713804750229,-158.0083576,0.00035,30]
[323203221,1713804750255,-1077.27182812,0.00039986,39]
[323203222,1713804750280,-637.98117757,0.00042114,20]
[323203223,1713804750305,-366.741064,0.00042116,30]
[323203224,1713804750329,-153.39334631,0.00042394,60]
[323203225,1713804750353,-150.0,0.00043394,60]
[323203226,1713804750556,12166.80735192,0.00042113,15]
[323203228,1713804756536,389.05906483,0.00039989,31]
[323203236,1713805065878,-519.85393498,0.00019076,2]
[323203237,1713805065899,-188.78745648,0.00019077,2]
[323203238,1713805065920,-300.95654728,0.00019177,2]
[323203239,1713805065941,-300.0,0.00019198,2]
[323203240,1713805065963,-300.0,0.00019198,2]
[323203241,1713805065983,-8571.40206126,0.00019199,2]
[323203247,1713805400970,-2099.05646455,0.00017684,2]
[323203248,1713805400990,-417.0,0.00017685,2]
[323203249,1713805401010,-603.23240406,0.000185,2]
[323203250,1713805401031,-300.0,0.00018507,2]
[323203251,1713805401053,-5151.71113139,0.00018508,2]
[323203301,1713805832141,-459.645754,0.00018506,2]
[323203302,1713805832151,-300.0,0.00018507,2]
[323203303,1713805832161,-9554.65499445,0.00018508,2]
[323203336,1713805838053,-10193.63387416,0.00018508,2]
[323203337,1713805838062,-211.087585,0.00018545,2]
[323203338,1713805838071,-927.5718807,0.00018902,2]
[323203339,1713805838080,-168.732056,0.00019178,2]
[323203340,1713805838089,-168.464058,0.00019178,2]
[323203341,1713805838098,-200.0,0.00019199,2]
[323203342,1713805838107,-173.17816582,0.000197,2]
[323203343,1713805838116,-2000.0,0.00019792,2]
[323203344,1713805838124,-389.05906483,0.00019891,2]
[323203345,1713805838133,-409962.83882736,0.00019892,2]
[323203346,1713805838142,-1620.75093527,0.00019893,2]
[323203347,1713805838151,-84637.03484025,0.00019893,2]
[323203348,1713805838159,-477.56690442,0.00019895,2]
[323203349,1713805838168,-4204.41460652,0.00019895,2]
[323203350,1713805838177,-351.3365457,0.00019896,2]
[323203351,1713805838186,-1474.13127024,0.00019896,2]
[323203352,1713805838195,-44444.0,0.00019899,2]
[323203353,1713805838205,-14767.68288164,0.0002,2]
[323203354,1713805838214,-5458.5886175,0.0002,2]
[323203355,1713805838223,-277.93550668,0.0002,2]
[323203356,1713805838233,-689.33608369,0.0002,2]
[323203357,1713805838244,-319.6542586,0.0002,2]
[323203358,1713805838253,-677.92303889,0.0002,2]
[323203359,1713805838262,-1683.20389284,0.0002,2]
[323203360,1713805838271,-241.47273892,0.0002,2]
[323203361,1713805838281,-354.73903456,0.0002,2]
[323203362,1713805838290,-200.0,0.0002,2]
[323203363,1713805838300,-420.0,0.00020358,2]
[323203364,1713805838309,-7923.63328793,0.00021,2]
[323203365,1713805838320,-524.23215888,0.00021917,2]
[323203366,1713805838330,-535.53271523,0.00021917,2]
[323203367,1713805838339,-642.89610519,0.00021917,2]
[323203368,1713805838347,-505.82461648,0.00021917,2]
[323203369,1713805838357,-536.2462159,0.00021917,2]
[323203370,1713805838367,-946.61,0.00021917,2]
[323203371,1713805838376,-517.91814139,0.00021917,2]
[323203372,1713805838386,-508.4004253,0.00021917,2]
[323203373,1713805838395,-518.28270878,0.00021917,2]
[323203374,1713805838405,-526.4046525,0.00021917,2]
[323203375,1713805838414,-508.75393425,0.00021917,2]
[323203376,1713805838424,-589.68021895,0.00021917,2]
[323203377,1713805838434,-507.61789599,0.00021917,2]
[323203378,1713805838443,-517.55496957,0.00021917,2]
[323203379,1713805838452,-571.78,0.00021917,2]
[323203380,1713805838462,-505.53864292,0.00021917,2]
[323203382,1713805838471,-510.54648198,0.00021917,2]
[323203384,1713805838481,-633.45682549,0.00021917,2]
[323203385,1713805838491,-508.57819799,0.00021917,2]
[323203386,1713805838500,-505.55725819,0.00021917,2]
[323203388,1713805838510,-949.86,0.00021917,2]
[323203390,1713805838520,-505.60139944,0.00021917,2]
[323203392,1713805838529,-505.13033611,0.00021917,2]
[323203393,1713805838539,-506.9009558,0.00021917,2]
[323203394,1713805838548,-500.0,0.00021917,2]
[323203395,1713805838558,-614.29,0.00021917,2]
[323203396,1713805838567,-506.04237894,0.00021917,2]
[323203397,1713805838577,-512.76159137,0.00021917,2]
[323203398,1713805838586,-531.78529955,0.00021917,2]
[323203399,1713805838595,-524.91,0.00021917,2]
[323203400,1713805838604,-195.54512758,0.00021917,2]
[323203402,1713805838614,-513.71192368,0.00021917,2]
[323203404,1713805838623,-509.60979714,0.00021917,2]
[323203406,1713805838633,-570.07919253,0.00021917,2]
[323203408,1713805838642,-587.55956836,0.00021917,2]
[323203410,1713805838652,-509.87726781,0.00021917,2]
[323203411,1713805838661,-500.0,0.00021917,2]
[323203412,1713805838670,-500.0,0.00021917,2]
[323203414,1713805838680,-833.37,0.00021917,2]
[323203415,1713805838688,-500.0,0.00021917,2]
[323203417,1713805838697,-507.45649403,0.00021917,2]
[323203418,1713805838707,-510.77824776,0.00021917,2]
[323203419,1713805838716,-535.62780696,0.00021917,2]
[323203420,1713805838725,-505.19120556,0.00021917,2]
[323203421,1713805838734,-500.0,0.00021917,2]
[323203422,1713805838743,-500.0,0.00021917,2]
[323203423,1713805838752,-500.0,0.00021917,2]
[323203424,1713805838897,-500.0,0.00021917,2]
[323203425,1713805838907,-500.0,0.00021917,2]
[323203426,1713805838917,-500.0,0.00021917,2]
[323203427,1713805838926,-510.83693598,0.00021917,2]
[323203428,1713805838936,-576.97,0.00021917,2]
[323203429,1713805838945,-515.89013044,0.00021917,2]
[323203430,1713805838955,-500.0,0.00021917,2]
[323203431,1713805838965,-520.58550458,0.00021917,2]
[323203432,1713805838974,-500.0,0.00021917,2]
[323203433,1713805838984,-620.04400466,0.00021917,2]
[323203434,1713805838993,-500.0,0.00021917,2]
[323203435,1713805839003,-671.69,0.00021917,2]
[323203436,1713805839012,-500.0,0.00021917,2]
[323203437,1713805839022,-803.75,0.00021917,2]
[323203438,1713805839031,-500.0,0.00021917,2]
[323203439,1713805839040,-637.47,0.00021917,2]
[323203440,1713805839051,-595.78,0.00021917,2]
[323203441,1713805839061,-572.44476583,0.00021917,2]
[323203442,1713805839070,-556.76751325,0.00021917,2]
[323203443,1713805839080,-506.65,0.00021917,2]
[323203444,1713805839089,-500.0,0.00021917,2]
[323203445,1713805839098,-500.0,0.00021917,2]
[323203446,1713805839107,-670.45,0.00021917,2]
[323203447,1713805839117,-535.13117393,0.00021917,2]
[323203448,1713805839126,-506.61254594,0.00021917,2]
[323203449,1713805839135,-1720.82,0.00021917,2]
[323203450,1713805839144,-507.3373728,0.00021917,2]
[323203451,1713805839153,-507.54968807,0.00021917,2]
[323203452,1713805839163,-542.31756665,0.00021917,2]
[323203453,1713805839172,-1154.18,0.00021917,2]
[323203454,1713805839182,-517.2148373,0.00021917,2]
[323203455,1713805839192,-585.90361652,0.00021917,2]
[323203456,1713805839201,-584.93766147,0.00021917,2]
[323203457,1713805839211,-213.31290659,0.00021917,2]
[323203458,1713805839221,-500.0,0.00021917,2]
[323203459,1713805839231,-500.0,0.00021917,2]
[323203460,1713805839242,-500.0,0.00021917,2]
[323203461,1713805839250,-1193.28,0.00021917,2]
[323203462,1713805839259,-555.1,0.00021917,2]
[323203463,1713805839268,-505.24880104,0.00021917,2]
[323203464,1713805839278,-508.44002651,0.00021917,2]
[323203465,1713805839287,-641.38,0.00021917,2]
[323203466,1713805839297,-500.0,0.00021917,2]
[323203467,1713805839310,-513.49823177,0.00021917,2]
[323203468,1713805839320,-2916.66,0.00021917,2]
[323203469,1713805839329,-523.38202805,0.00021917,2]
[323203470,1713805839339,-509.20009692,0.00021917,2]
[323203471,1713805839348,-1095.36,0.00021917,2]
[323203472,1713805839357,-544.89,0.00021917,2]
[323203473,1713805839366,-500.0,0.00021917,2]
[323203474,1713805839375,-505.11022277,0.00021917,2]
[323203475,1713805839385,-500.0,0.00021917,2]
[323203476,1713805839395,-534.58875718,0.00021917,2]
[323203477,1713805839404,-703.46,0.00021917,2]
[323203478,1713805839414,-543.74206283,0.00021917,2]
[323203479,1713805839423,-500.0,0.00021917,2]
[323203480,1713805839432,-500.0,0.00021917,2]
[323203481,1713805839442,-500.0,0.00021917,2]
[323203482,1713805839451,-500.0,0.00021917,2]
[323203483,1713805839461,-559.03924243,0.00021917,2]
[323203485,1713805839470,-1078.17,0.00021917,2]
[323203487,1713805839479,-500.0,0.00021917,2]
[323203489,1713805839489,-981.02,0.00021917,2]
[323203491,1713805839499,-605.29192312,0.00021917,2]
[323203493,1713805839509,-637.59,0.00021917,2]
[323203495,1713805839517,-809.51,0.00021917,2]
[323203497,1713805839527,-624.08,0.00021917,2]
[323203498,1713805839536,-500.0,0.00021917,2]
[323203500,1713805839545,-670.87,0.00021917,2]
[323203501,1713805839557,-500.0,0.00021917,2]
[323203503,1713805839566,-158.93320538,0.00022,2]
[323203505,1713805839575,-946.61,0.00022191,2]
[323203507,1713805839583,-949.86,0.00022191,2]
[323203508,1713805839592,-614.29,0.00022191,2]
[323203509,1713805839602,-524.91,0.00022191,2]
[323203510,1713805839612,-500.0,0.00022191,2]
[323203511,1713805839621,-514.22762064,0.00022191,2]
[323203512,1713805839630,-833.37,0.00022191,2]
[323203513,1713805839639,-500.0,0.00022191,2]
[323203514,1713805839649,-500.0,0.00022191,2]
[323203515,1713805839658,-570.61318475,0.00022191,2]
[323203516,1713805839667,-382.79021531,0.00022191,2]
[323203517,1713805839677,-671.69,0.00022191,2]
[323203518,1713805839685,-500.0,0.00022191,2]
[323203519,1713805839694,-803.75,0.00022191,2]
[323203520,1713805839704,-500.0,0.00022191,2]
[323203521,1713805839713,-595.78,0.00022191,2]
[323203522,1713805839722,-506.65,0.00022191,2]
[323203523,1713805839732,-557.30867991,0.00022191,2]
[323203524,1713805839741,-500.0,0.00022191,2]
[323203525,1713805839751,-670.45,0.00022191,2]
[323203526,1713805839760,-1720.82,0.00022191,2]
[323203527,1713805839770,-1154.18,0.00022191,2]
[323203528,1713805839778,-364.92644505,0.00022191,2]
[323203529,1713805839788,-297.95,0.00022191,2]
[323203530,1713805839797,-1193.28,0.00022191,2]
[323203531,1713805839808,-500.0,0.00022191,2]
[323203533,1713805839818,-2916.66,0.00022191,2]
[323203534,1713805839827,-1095.36,0.00022191,2]
[323203535,1713805839837,-544.89,0.00022191,2]
[323203536,1713805839846,-602.11155441,0.00022191,2]
[323203538,1713805839855,-500.0,0.00022191,2]
[323203539,1713805839865,-703.46,0.00022191,2]
[323203540,1713805839874,-500.0,0.00022191,2]
[323203541,1713805839883,-500.0,0.00022191,2]
[323203542,1713805839893,-500.0,0.00022191,2]
[323203543,1713805839902,-500.0,0.00022191,2]
[323203545,1713805839911,-1078.17,0.00022191,2]
[323203547,1713805839920,-500.0,0.00022191,2]
[323203548,1713805839929,-981.02,0.00022191,2]
[323203550,1713805839938,-809.51,0.00022191,2]
[323203551,1713805839947,-624.08,0.00022191,2]
[323203552,1713805839956,-557.4413043,0.00022191,2]
[323203553,1713805839965,-295.51109894,0.00022191,2]
[323203554,1713805839975,-670.87,0.00022191,2]
[323203555,1713805839984,-587.0,0.00022394,2]
[323203556,1713805839994,-946.61,0.00022465,2]
[323203557,1713805840003,-949.86,0.00022465,2]
[323203558,1713805840012,-614.29,0.00022465,2]
[323203560,1713805840022,-524.91,0.00022465,2]
[323203561,1713805840031,-441.86847185,0.00022465,2]
[323203562,1713805840040,-833.37,0.00022465,2]
[323203563,1713805840051,-500.0,0.00022465,2]
[323203564,1713805840060,-500.0,0.00022465,2]
[323203565,1713805840069,-671.69,0.00022465,2]
[323203567,1713805840079,-500.0,0.00022465,2]
[323203568,1713805840088,-803.75,0.00022465,2]
[323203569,1713805840097,-321.04474963,0.00022465,2]
[323203570,1713805840107,-595.78,0.00022465,2]
[323203571,1713805840116,-506.65,0.00022465,2]
[323203572,1713805840126,-500.0,0.00022465,2]
[323203573,1713805840135,-670.45,0.00022465,2]
[323203574,1713805840144,-1720.82,0.00022465,2]
[323203575,1713805840153,-1154.18,0.00022465,2]
[323203576,1713805840163,-1193.28,0.00022465,2]
[323203577,1713805840175,-500.0,0.00022465,2]
[323203578,1713805840185,-2916.66,0.00022465,2]
[323203579,1713805840194,-1095.36,0.00022465,2]
[323203580,1713805840203,-544.89,0.00022465,2]
[323203581,1713805840211,-163.74,0.00022465,2]
[323203582,1713805840221,-703.46,0.00022465,2]
[323203583,1713805840232,-500.0,0.00022465,2]
[323203584,1713805840245,-606.82038395,0.00022465,2]
[323203585,1713805840255,-500.0,0.00022465,2]